{"text_format":"1","workbook":"xlsx","n_sheets":7,"sheets":["Cancel14Day","Conflict","F843-FTA","NewF843-FTA","FOIA Addl Assmt","LtrHd","DataSheet"],"not_rendered":{"charts":0,"images":25,"macros":1,"external_links":0,"defined_names":20,"comments":0,"pivot_tables":0},"unopened":[],"bounds":{"document_bytes":16777216,"sheet_cells":100000,"rows_first":2000,"rows_last":500,"rows_between":2000,"halvings":0,"cell_chars":16384,"cell_head_chars":4096},"cells_cut":0,"cells_raw":0,"read":"whole","date_system":"1900"}

{"sheet":"Cancel14Day","index":0,"n_rows":52,"n_cols":60,"rows_kept":52,"cut":false,"hidden":false,"merged":[[41,1,43,8],[27,1,27,34],[24,1,24,34],[25,1,25,34],[26,1,26,34],[29,1,31,34],[33,1,34,34],[36,1,37,34],[50,1,50,10],[50,13,50,22],[50,25,50,34],[51,1,51,10],[51,13,51,22],[51,25,51,34],[1,58,1,59],[3,1,3,13],[3,38,4,49],[40,1,40,8],[9,1,12,14],[12,27,12,34],[0,1,2,5],[0,6,2,13],[17,1,18,14],[20,1,22,34]]}
[null,null,null,null,null,null,"dc Tax, LLC \n9301 Ocoee St, #64\nChattanooga, TN 37363"]
[null,null,null,null,null,null,null,null,null,null,null,null,null,null,null,null,null,null,null,null,null,null,null,null,null,null,null,null,null,null,null,null,null,null,null,null,null,null,null,null,null,null,null,null,null,null,null,null,null,null,null,null,null,null,null,null,null,null,"Addressee"]
[null,null,null,null,null,null,null,null,null,null,null,null,null,null,null,null,null,null,null,null,null,null,null,null,null,null,null,null,null,null,null,null,null,null,null,null,null,null,null,null,null,null,null,null,null,null,null,null,null,null,null,null,null,null,null,null,null,null,"Name","Oscar & Barbara Andujo"]
[null,"IRS representation for individuals & small business         ",null,null,null,null,null,null,null,null,null,null,null,null,null,null,null,null,null,null,null,null,null,null,null,null,null,null,null,null,null,null,null,null,null,null,null,null,{"$f":"IFERROR(IF(LEN(BH8)<12,BH8&RIGHT(BH3,FIND(\" \",BH3))&\",\",BH8),\"\")","v":"Mr. & Mrs. Andujo,"},null,null,null,null,null,null,null,null,null,null,null,null,null,null,null,null,null,null,null,"Address L1","6956 Meadow Briar Lane"]
[null,null,null,null,null,null,null,null,null,null,null,null,null,null,null,null,null,null,null,null,null,null,null,null,null,null,null,null,null,null,null,null,null,null,null,null,null,null,null,null,null,null,null,null,null,null,null,null,null,null,null,null,null,null,null,null,null,null,"Address L2","Dallas, TX  75230"]
[null,null,null,null,null,null,null,null,null,null,null,null,null,null,null,null,null,null,null,null,null,null,null,null,null,null,null,null,null,null,null,null,null,null,null,null,null,null,null,null,null,null,null,null,null,null,null,null,null,null,null,null,null,null,null,null,null,null,"Address L3"]
[]
[null,null,null,null,null,null,null,null,null,null,null,null,null,null,null,null,null,null,null,null,null,null,null,null,null,null,null,null,null,null,null,null,null,null,null,null,null,null,null,null,null,null,null,null,null,null,null,null,null,null,null,null,null,null,null,null,null,null,"Greeting","Mr. & Mrs. "]
[]
[null,{"$f":"BH3&CHAR(10)&BH4&CHAR(10)&IF(BH5=\"\",BH6,BH5)&CHAR(10)&IF(BH5=\"\",\"\",BH6)","v":"Oscar & Barbara Andujo\n6956 Meadow Briar Lane\nDallas, TX  75230\n"}]
[]
[]
[null,null,null,null,null,null,null,null,null,null,null,null,null,null,null,null,null,null,null,null,null,null,null,null,null,null,null,{"$f":"TODAY()","v":"2025-02-10"}]
[]
[]
[null,null,null,"Have You Changed Your Mind?"]
[]
[null,{"$f":"AM4","v":"Mr. & Mrs. Andujo,"}]
[]
[]
[null,"I tried to reach you regarding your current case status. We have reached a standstill and are unable to move forward without your assistance. We must receive the necessary items to continue working on your case and prevent aggressive collection action from occurring. ",null,null,null,null,null,null,null,null,null,null,null,null,null,null,null,null,null,null,null,null,null,null,null,null,null,null,null,null,null,null,null,null,null,null,null,null,null,null,null,null,null,null,null,null,null,null,null,null,null,null,{"$f":"RIGHT(BH3,FIND(\" \",BH3))","v":"Andujo"}]
[]
[]
[]
[null,"We have not been able to contact you and must do so in order to move forward."]
[null,"Please contact me as soon as possible at:"]
[null,"(888) 627-2375 or (423) 482-9737"]
[null,"or by email at david.collins@moneysolver.org"]
[]
[null,"Our team is dedicated to helping you resolve this matter, but we have reached a critical point in your case where we cannot continue without your cooperation. Let’s work together to get your case back on track!"]
[]
[]
[]
[null,"If we do not receive the requested documentation within 14 days, we will assume you have decided to halt action on this matter.  "]
[]
[]
[null,"Please make me aware if you need help obtaining the appropriate information or assistance completing your documents."]
[]
[]
[]
[null,"Sincerely,"]
[]
[]
[]
[null,"David W Collins"]
[null,"Enrolled Agent"]
[]
[]
[]
[]
[null,"9301 Ocoee St., #64",null,null,null,null,null,null,null,null,null,null,null,"Ph: (888) 627-2375",null,null,null,null,null,null,null,null,null,null,null,"http://dctax.us"]
[null,"Chattanooga, TN 37363",null,null,null,null,null,null,null,null,null,null,null,"Fax: (423) 558-3274",null,null,null,null,null,null,null,null,null,null,null,"david@dctax.us"]

{"sheet":"Conflict","index":1,"n_rows":38,"n_cols":3,"rows_kept":38,"cut":false,"hidden":false,"merged":[]}
[]
[null,"Client Name"]
[null,"SSN"]
[null,"Client Address"]
[null,"Resolution type"]
[null,"Date"]
[]
[null,null,"dc Tax, LLC"]
[null,null,"9301 Ocoee St, #64"]
[null,null,"Chattanooga, TN 37363"]
[]
[null,null,{"$f":"\"Client name:                \"&C2&IF(C3=\"\",\"\",\", \"&C3)","v":"Client name:                "}]
[null,null,{"$f":"\"Client address:            \"&C4","v":"Client address:            "}]
[]
[null,null,"CONFLICT OF INTEREST WAIVER"]
[]
[null,null,{"$f":"\"Please read the following carefully. This firm, dc Tax, LLC, in accordance with Department of the Treasury Circular 230, has determined that its acceptance of your Representation / Resolution of \"&C5&\" may constitute a conflict \"&\"of interest under Sec. 10.29. A conflict of interest arises when the representation of one client may be directly adverse to another client. A conflict of interest also arises if there is\"&\" a significant risk that the representation of a client will be materially limited by the practitioner's responsibilities to another client.\"","v":"Please read the following carefully. This firm, dc Tax, LLC, in accordance with Department of the Treasury Circular 230, has determined that its acceptance of your Representation / Resolution of  may constitute a conflict of interest under Sec. 10.29. A conflict of interest arises when the representation of one client may be directly adverse to another client. A conflict of interest also arises if there is a significant risk that the representation of a client will be materially limited by the practitioner's responsibilities to another client."}]
[]
[null,null,"We believe we can both perform the above-described engagement and fulfill the duties owed to you in an objective, impartial and intellectually honest manner."]
[]
[null,null,"However, before we can continue the engagement, Circular 230 requires that we obtain your informed written consent. By giving your consent, you agree to waive any objection to any potential or actual conflict of interest arising from our acceptance or performance of the above-described engagement."]
[]
[null,null,"With this waiver, you agree to the following:"]
[]
[null,null,"1.  All information obtained from one spouse or ex-spouse regarding this engagement will be shared with the other spouse. We will routinely cc email to the other spouse."]
[]
[null,null,"2.  All eligible resolutions will be considered, and those outcomes discussed with both parties."]
[]
[null,null,"3.  If one spouse later decides to withdraw from this engagement, any conflict arising from continuing to represent the other spouse will continue to be waived, and information obtained from the withdrawing spouse may still be considered in the other spouse's engagement."]
[]
[null,null,"If you consent, please sign below. If you have any questions, feel free to contact us or to consult with legal counsel."]
[]
[null,null,"Thank you."]
[]
[null,null,"I hereby consent to the performance by dc Tax, LLC and its members of the\nabove-described engagement and waive any conflict of interest that\nmay arise out of that engagement."]
[]
[]
[null,null,"Taxpayer:                                                                                                     Date: "]

{"sheet":"F843-FTA","index":2,"n_rows":89,"n_cols":114,"rows_kept":89,"cut":false,"hidden":false,"merged":[[9,65,10,69],[9,70,9,79],[9,61,10,64],[75,0,76,58],[70,0,74,58],[26,61,26,79],[27,61,27,79],[19,61,19,69],[19,71,19,79],[15,61,15,69],[15,71,15,79],[16,61,16,69],[16,71,16,79],[18,71,18,79],[17,61,17,69],[68,0,68,58],[16,82,17,92],[18,82,19,92],[33,1,36,58],[82,35,82,52],[82,0,82,17],[54,1,57,28],[47,6,49,25],[56,48,56,58],[61,2,61,29],[59,2,59,42],[63,0,63,24],[47,41,49,50],[43,23,44,36],[18,61,18,69],[20,61,20,79],[21,61,21,79],[5,82,6,97],[6,61,6,79],[14,61,14,79],[0,61,0,79],[7,61,7,79],[8,61,8,79],[1,61,1,79],[3,61,3,79],[4,61,4,79],[2,61,2,79],[11,61,11,79],[5,61,5,79],[13,82,13,91],[12,61,12,79],[13,61,13,79],[10,70,10,79],[17,71,17,79],[22,61,25,80],[34,61,34,79],[35,61,35,79],[36,61,36,79],[28,61,28,79],[32,61,32,79],[33,61,33,79],[80,0,80,58],[86,0,86,20],[87,0,87,20],[88,0,88,20],[84,0,85,11],[86,44,86,51],[87,44,87,52],[85,42,85,52],[34,82,34,98],[29,61,29,79],[30,61,30,79],[31,61,31,79],[78,0,78,58],[64,0,67,58],[58,2,58,32],[37,61,37,79],[39,61,39,79],[41,61,41,79],[60,2,60,42],[38,61,38,79]]}
[null,null,null,null,null,null,null,null,null,null,null,null,null,null,null,null,null,null,null,null,null,null,null,null,null,null,null,null,null,null,null,null,null,null,null,null,null,null,null,null,null,null,null,null,null,null,null,null,null,null,null,null,null,null,null,null,null,null,null,null,null,"Taxpayer & Spouse Name",null,null,null,null,null,null,null,null,null,null,null,null,null,null,null,null,null,null,"*",null,null,null,null,null,null,null,null,null,null,null,null,null,null,null,null,null,null,"Penalty","Code",null,null,null,"State Abbr","State","Code",null,"Code","AddressL1","AddressL2","AddressL3"]
[null,null,null,null,null,null,null,null,null,null,null,null,null,null,null,null,null,null,null,null,null,null,null,null,null,null,null,null,null,null,null,null,null,null,null,null,null,null,null,null,null,null,null,null,null,null,null,null,null,null,null,null,null,null,null,null,null,null,null,null,null,"Taxpayer SSN",null,null,null,null,null,null,null,null,null,null,null,null,null,null,null,null,null,null,"*",null,null,null,null,null,null,null,null,null,null,null,null,null,null,null,null,null,null,"Failure to File tax return - §IRC 6651(a)(1) ","§IRC 6651(a)(1)",null,null,null,"AL","Alabama",1,null,1,"Department of the Treasury","Internal Revenue Service ","Austin, TX  73301-0002",null,{"$f":"\"l3=\"&DH3","v":"l3=Austin, TX 73301-0002"}]
[null,null,null,null,null,null,null,null,null,null,null,null,null,null,null,null,null,null,null,null,null,null,null,null,null,null,null,null,null,null,null,null,null,null,null,null,null,null,null,null,null,null,null,null,null,null,null,null,null,null,null,null,null,null,null,null,null,null,null,null,null,"Spouse SSN",null,null,null,null,null,null,null,null,null,null,null,null,null,null,null,null,null,null,null,null,null,null,null,null,null,null,null,null,null,null,null,null,null,null,null,null,null,"Failure to File Partnership return - §IRC 6698(a)(1)","§IRC 6698(a)(1)",null,null,null,"AK","Alaska",4,null,2,"Department of the Treasury","Internal Revenue Service ","Austin, TX 73301-0002",null,{"$f":"\"l3=\"&DH4","v":"l3=Kansas City, MO 64999-0002"}]
[null,null,null,null,null,null,null,null,null,null,null,null,null,null,null,null,null,null,null,null,null,null,null,null,null,null,null,null,null,null,null,null,null,null,null,null,null,null,null,null,null,null,null,null,null,null,null,null,null,null,null,null,null,null,null,null,null,null,null,null,null,"Address",null,null,null,null,null,null,null,null,null,null,null,null,null,null,null,null,null,null,"*",null,null,null,null,null,null,null,null,null,null,null,null,null,null,null,null,null,null,"Failure to File S-Corp return - §IRC 6699(a)(1)","§IRC 6699(a)(1)",null,null,null,"AZ","Arizona",2,null,3,"Department of the Treasury","Internal Revenue Service ","Kansas City, MO 64999-0002",null,"l3=Ogden, UT 84201-0002"]
[null,null,null,null,null,null,null,null,null,null,null,null,null,null,null,null,null,null,null,null,null,null,null,null,null,null,null,null,null,null,null,null,null,null,null,null,null,null,null,null,null,null,null,null,null,null,null,null,null,null,null,null,null,null,null,null,null,null,null,null,null,"City, St Zip",null,null,null,null,null,null,null,null,null,null,null,null,null,null,null,null,null,null,"*",null,null,null,null,null,null,null,null,null,null,null,null,null,null,null,null,null,null,"Failure to Pay (tax reported) §IRC 6651(a)(2)","§IRC 6651(a)(2)",null,null,null,"AR","Arkansas",5,null,4,"Department of Treasury","Internal Revenue Service ","Ogden, UT 84201-0002",null,"l3=Austin, TX  73301-0002"]
[null,null,null,null,null,null,null,null,null,null,null,null,null,null,null,null,null,null,null,null,null,null,null,null,null,null,null,null,null,null,null,null,null,null,null,null,null,null,null,null,null,null,null,null,null,null,null,null,null,null,null,null,null,null,null,null,null,null,null,null,null,"Return Address if different",null,null,null,null,null,null,null,null,null,null,null,null,null,null,null,null,null,null,null,null,null,null,null,null,null,null,null,null,null,null,null,null,null,null,null,null,null,"Failure to Pay (tax unreported) §IRC 6651(a)(3)","§IRC 6651(a)(3)",null,null,null,"CA","California",4,null,5,"Department of the Treasury","Internal Revenue Service ","Austin, TX  73301-0002",null,"l3=Kansas City, MO 64999-0002"]
[null,null,null,null,null,null,null,null,null,null,null,null,null,null,null,null,null,null,null,null,null,null,null,null,null,null,null,null,null,null,null,null,null,null,null,null,null,null,null,null,null,null,null,null,null,null,null,null,null,null,null,null,null,null,null,null,null,null,null,null,null,"City, St Zip if different",null,null,null,null,null,null,null,null,null,null,null,null,null,null,null,null,null,null,null,null,null,null,null,null,null,null,null,null,null,null,null,null,null,null,null,null,null,"Failure to Deposit §IRC 6656","§IRC 6656","STATE Abbreviation",null,null,"CO","Colorado",4,null,6,"Department of the Treasury","Internal Revenue Service ","Kansas City, MO 64999-0002"]
[null,null,null,null,null,null,null,null,null,null,null,null,null,null,null,null,null,null,null,null,null,null,null,null,null,null,null,null,null,null,null,null,null,null,null,null,null,null,null,null,null,null,null,null,null,null,null,null,null,null,null,null,null,null,null,null,null,null,null,null,null,"Business EIN",null,null,null,null,null,null,null,null,null,null,null,null,null,null,null,null,null,null,null,null,null,null,null,null,null,null,null,null,null,null,null,null,null,null,null,null,null,null,null,{"$f":"IF(OR(CC5=\"*\",CC5=\"\"),\"\",MID(CC5,FIND(CHAR(160),SUBSTITUTE(CC5,\" \",CHAR(160),LEN(CC5)-LEN(SUBSTITUTE(CC5,\" \",\"\"))-1))+1,2))","v":""},"Department of the Treasury\nInternal Revenue Service\nAustin, TX  73301-0002",null,"CT","Connecticut",3]
[null,null,null,null,null,null,null,null,null,null,null,null,null,null,null,null,null,null,null,null,null,null,null,null,null,null,null,null,null,null,null,null,null,null,null,null,null,null,null,null,null,null,null,null,null,null,null,null,null,null,null,null,null,null,null,null,null,null,null,null,null,"Daytime Phone Number",null,null,null,null,null,null,null,null,null,null,null,null,null,null,null,null,null,null,"*",null,{"$f":"TEXT(IF(CC9=\"*\",CC40,CC9),\"(000) 000-0000\")","v":"(423) 482-9737"},null,null,null,null,null,null,null,null,null,null,null,null,null,null,null,null,null,null,"State Code",null,null,"DE","Delaware",3]
[null,null,null,null,null,null,null,null,null,null,null,null,null,null,null,null,null,null,null,null,null,null,null,null,null,null,null,null,null,null,null,null,null,null,null,null,null,null,null,null,null,null,null,null,null,null,null,null,null,null,null,null,null,null,null,null,null,null,null,null,null,"1)  Tax Year:",null,null,null,2023,null,null,null,null,"Period   From:",null,null,null,null,null,null,null,null,null,"*",null,null,null,null,null,null,null,null,null,null,null,null,null,null,null,null,null,null,"Type of Fee or Return",null,{"$f":"IF(CX8=\"\",\"\",_xlfn.XLOOKUP(CX8,SvcCentersTbl[State Abbr],SvcCentersTbl[Code]))","v":""},null,null,"DC","District of Columbia",3]
[null,null,null,null,null,null,null,null,null,null,null,null,null,null,null,null,null,null,null,null,null,null,null,null,null,null,null,null,null,null,null,null,null,null,null,null,null,null,null,null,null,null,null,null,null,null,null,null,null,null,null,null,null,null,null,null,null,null,null,null,null,null,null,null,null,null,null,null,null,null,"Period   To:",null,null,null,null,null,null,null,null,null,"*",null,null,null,null,null,null,null,null,null,null,null,null,null,null,null,null,null,null,"706 (Estate)",null,null,null,null,"FL","Florida",1]
[null,null,null,null,null,null,null,null,null,null,null,null,null,null,null,null,null,null,null,null,null,null,null,null,null,null,null,null,null,null,null,null,null,null,null,null,null,null,null,null,null,null,null,null,null,null,null,null,null,null,null,null,null,null,null,null,null,null,null,null,null,"2)  Amount",null,null,null,null,null,null,null,null,null,null,null,null,null,null,null,null,null,null,"*",null,null,null,null,null,null,null,null,null,null,null,null,null,null,null,null,null,null,"709 (Gift)",null,null,null,null,"GA","Georgia",1]
[null,null,null,null,null,null,null,null,null,null,null,null,null,null,null,null,null,null,null,null,null,null,null,null,null,null,null,null,null,null,null,null,null,null,null,null,null,null,null,null,null,null,null,null,null,null,null,null,null,null,null,null,null,null,null,null,null,null,null,null,null,"3)  Type of Tax",null,null,null,null,null,null,null,null,null,null,null,null,null,null,null,null,null,null,"*",null,null,null,null,null,null,null,null,null,null,null,null,null,null,null,null,null,null,"940 (Unemployment)",null,null,null,null,"HI","Hawaii",4]
[null,null,null,null,null,null,null,null,null,null,null,null,null,null,null,null,null,null,null,null,null,null,null,null,null,null,null,null,null,null,null,null,null,null,null,null,null,null,null,null,null,null,null,null,null,null,null,null,null,null,null,null,null,null,null,null,null,null,null,null,null,"4)  Type of Penalty",null,null,null,null,null,null,null,null,null,null,null,null,null,null,null,null,null,null,"*",null,{"$f":"_xlfn.XLOOKUP(CC14,Penalty_Types,Code)","v":{"$error":"#N/A"}},null,null,null,null,null,null,null,null,null,null,null,null,null,null,null,null,"941 (Qtrly Employment)",null,null,null,null,"ID","Idaho",4]
[null,null,null,null,null,null,null,null,null,null,null,null,null,null,null,null,null,null,null,null,null,null,null,null,null,null,null,null,null,null,null,null,null,null,null,null,null,null,null,null,null,null,null,null,null,null,null,null,null,null,null,null,null,null,null,null,null,null,null,null,null,"5a)  Reason for abatement",null,null,null,null,null,null,null,null,null,null,null,null,null,null,null,null,null,null,"*",null,null,null,null,null,null,null,null,null,null,null,null,null,null,null,null,null,null,"943 (Annual Agriculture)",null,null,null,null,"IL","Illinois",3]
[null,null,null,null,null,null,null,null,null,null,null,null,null,null,null,null,null,null,null,null,null,null,null,null,null,null,null,null,null,null,null,null,null,null,null,null,null,null,null,null,null,null,null,null,null,null,null,null,null,null,null,null,null,null,null,null,null,null,null,null,null,"Date",null,null,null,null,null,null,null,null,null,"Amount",null,null,null,null,null,null,null,null,"5b)  Payments",null,null,null,null,null,null,null,null,null,null,null,null,null,null,null,null,null,null,"945 (Annual WH)",null,null,null,null,"IN","Indiana",3]
[null,null,null,null,null,null,null,null,null,null,null,null,null,null,null,null,null,null,null,null,null,null,null,null,null,null,null,null,null,null,null,null,null,null,null,null,null,null,null,null,null,null,null,null,null,null,null,null,null,null,null,null,null,null,null,null,null,null,null,null,null,null,null,null,null,null,null,null,null,null,null,null,null,null,null,null,null,null,null,null,{"$f":"IF(BJ17=\"\",\"\",TEXT(BJ17,\"mm/dd/yyyy\")&IF(BT17=\"\",\"\",\" - \"&TEXT(BT17,\"$0,000\")))","v":""},null,{"$f":"_xlfn.TEXTJOIN(CHAR(10),TRUE,CC17:CC18)","v":""},null,null,null,null,null,null,null,null,null,null,null,null,null,null,null,null,"990 (Exempt)",null,null,null,null,"IA","Iowa",3]
[null,null,null,null,null,null,null,null,null,null,null,null,null,null,null,null,null,null,null,null,null,null,null,null,null,null,null,null,null,null,null,null,null,null,null,null,null,null,null,null,null,null,null,null,null,null,null,null,null,null,null,null,null,null,null,null,null,null,null,null,null,null,null,null,null,null,null,null,null,null,null,null,null,null,null,null,null,null,null,null,{"$f":"IF(BJ18=\"\",\"\",TEXT(BJ18,\"mm/dd/yyyy\")&IF(BT18=\"\",\"\",\" - \"&TEXT(BT18,\"$0,000\")))","v":""},null,null,null,null,null,null,null,null,null,null,null,null,null,null,null,null,null,null,"1040 (Individual Income)",null,null,null,null,"KS","Kansas",4]
[null,null,null,null,null,null,null,null,null,null,null,null,null,null,null,null,null,null,null,null,null,null,null,null,null,null,null,null,null,null,null,null,null,null,null,null,null,null,null,null,null,null,null,null,null,null,null,null,null,null,null,null,null,null,null,null,null,null,null,null,null,null,null,null,null,null,null,null,null,null,null,null,null,null,null,null,null,null,null,null,"",null,{"$f":"_xlfn.TEXTJOIN(CHAR(10),TRUE,CC19:CC20)","v":""},null,null,null,null,null,null,null,null,null,null,null,null,null,null,null,null,"1120 (Corporate Tax)",null,null,null,null,"KY","Kentucky",3]
[null,null,null,null,null,null,null,null,null,null,null,null,null,null,null,null,null,null,null,null,null,null,null,null,null,null,null,null,null,null,null,null,null,null,null,null,null,null,null,null,null,null,null,null,null,null,null,null,null,null,null,null,null,null,null,null,null,null,null,null,null,null,null,null,null,null,null,null,null,null,null,null,null,null,null,null,null,null,null,null,"",null,null,null,null,null,null,null,null,null,null,null,null,null,null,null,null,null,null,"4720 (Excise)",null,null,null,null,"LA","Louisiana",1]
[null,null,null,null,null,null,null,null,null,null,null,null,null,null,null,null,null,null,null,null,null,null,null,null,null,null,null,null,null,null,null,null,null,null,null,null,null,null,null,null,null,null,null,null,null,null,null,null,null,null,null,null,null,null,null,null,null,null,null,null,null,"6)  Original Return",null,null,null,null,null,null,null,null,null,null,null,null,null,null,null,null,null,null,"*",null,null,null,null,null,null,null,null,null,null,null,null,null,null,null,null,null,null,"Other:",null,null,null,null,"ME","Maine",3]
[null,null,null,null,null,null,null,null,null,null,null,null,null,null,null,null,null,null,null,null,null,null,null,null,null,null,null,null,null,null,null,null,null,null,null,null,null,null,null,null,null,null,null,null,null,null,null,null,null,null,null,null,null,null,null,null,null,null,null,null,null,"↓↓ Explanation: ↓↓",null,null,null,null,null,null,null,null,null,null,null,null,null,null,null,null,null,null,null,null,null,null,null,null,null,null,null,null,null,null,null,null,null,null,null,null,null,null,null,null,null,null,"MD","Maryland",3]
[null,null,null,null,null,null,null,null,null,null,null,null,null,null,null,null,null,null,null,null,null,null,null,null,null,null,null,null,null,null,null,null,null,null,null,null,null,null,null,null,null,null,null,null,null,null,null,null,null,null,null,null,null,null,null,null,null,null,null,null,null,"You must select a penalty type on line 4",null,null,null,null,null,null,null,null,null,null,null,null,null,null,null,null,null,null,null,null,null,null,null,null,null,null,null,null,null,null,null,null,null,null,null,null,null,null,null,null,null,null,"MA","Massachusetts",3]
[null,null,null,null,null,null,null,null,null,null,null,null,null,null,null,null,null,null,null,null,null,null,null,null,null,null,null,null,null,null,null,null,null,null,null,null,null,null,null,null,null,null,null,null,null,null,null,null,null,null,null,null,null,null,null,null,null,null,null,null,null,null,null,null,null,null,null,null,null,null,null,null,null,null,null,null,null,null,null,null,null,null,null,null,null,null,null,null,null,null,null,null,null,null,null,null,null,null,null,"Interest, Penalties, Additions",null,null,null,null,"MI","Michigan",4]
[null,null,null,null,null,null,null,null,null,null,null,null,null,null,null,null,null,null,null,null,null,null,null,null,null,null,null,null,null,null,null,null,null,null,null,null,null,null,null,null,null,null,null,null,null,null,null,null,null,null,null,null,null,null,null,null,null,null,null,null,null,null,null,null,null,null,null,null,null,null,null,null,null,null,null,null,null,null,null,null,null,null,null,null,null,null,null,null,null,null,null,null,null,null,null,null,null,null,null,"Penalty result of IRS errors or delays",null,null,null,null,"MN","Minnesota",3]
[null,null,null,null,null,null,null,null,null,null,null,null,null,null,null,null,null,null,null,null,null,null,null,null,null,null,null,null,null,null,null,null,null,null,null,null,null,null,null,null,null,null,null,null,null,null,null,null,null,null,null,null,null,null,null,null,null,null,null,null,null,null,null,null,null,null,null,null,null,null,null,null,null,null,null,null,null,null,null,null,null,null,null,null,null,null,null,null,null,null,null,null,null,null,null,null,null,null,null,"Penalty result of IRS erroneous written advice",null,null,null,null,"MS","Mississippi",1]
[null,null,null,null,null,null,null,null,null,null,null,null,null,null,null,null,null,null,null,null,null,null,null,null,null,null,null,null,null,null,null,null,null,null,null,null,null,null,null,null,null,null,null,null,null,null,null,null,null,null,null,null,null,null,null,null,null,null,null,null,null,"Signature 1 Date",null,null,null,null,null,null,null,null,null,null,null,null,null,null,null,null,null,null,null,null,null,null,null,null,null,null,null,null,null,null,null,null,null,null,null,null,null,"Reasonable Cause",null,null,null,null,"MO","Missouri",3]
[null,null,null,null,null,null,null,null,null,null,null,null,null,null,null,null,null,null,null,null,null,null,null,null,null,null,null,null,null,null,null,null,null,null,null,null,null,null,null,null,null,null,null,null,null,null,null,null,null,null,null,null,null,null,null,null,null,null,null,null,null,"Signature 2 Date",null,null,null,null,null,null,null,null,null,null,null,null,null,null,null,null,null,null,null,null,null,null,null,null,null,null,null,null,null,null,null,null,null,null,null,null,null,"FTA - First Time Abatement",null,null,null,null,"MT","Montana",4]
[null,null,null,null,null,null,null,null,null,null,null,null,null,null,null,null,null,null,null,null,null,null,null,null,null,null,null,null,null,null,null,null,null,null,null,null,null,null,null,null,null,null,null,null,null,null,null,null,null,null,null,null,null,null,null,null,null,null,null,null,null,"Preparer's Name",null,null,null,null,null,null,null,null,null,null,null,null,null,null,null,null,null,null,"David W Collins",null,null,null,null,null,null,null,null,null,null,null,null,null,null,null,null,null,null,null,null,null,null,null,"NE","Nebraska",4]
[null,null,null,null,null,null,null,null,null,null,null,null,null,null,null,null,null,null,null,null,null,null,null,null,null,null,null,null,null,null,null,null,null,null,null,null,null,null,null,null,null,null,null,null,null,null,null,null,null,null,null,null,null,null,null,null,null,null,null,null,null,"Preparer's Title",null,null,null,null,null,null,null,null,null,null,null,null,null,null,null,null,null,null,"Enrolled Agent",null,null,null,null,null,null,null,null,null,null,null,null,null,null,null,null,null,null,null,null,null,null,null,"NV","Nevada",4]
[null,null,null,null,null,null,null,null,null,null,null,null,null,null,null,null,null,null,null,null,null,null,null,null,null,null,null,null,null,null,null,null,null,null,null,null,null,null,null,null,null,null,null,null,null,null,null,null,null,null,null,null,null,null,null,null,null,null,null,null,null,"Preparer's CAF #",null,null,null,null,null,null,null,null,null,null,null,null,null,null,null,null,null,null,"0315-5449R",null,null,null,null,null,null,null,null,null,null,null,null,null,null,null,null,null,null,null,null,null,null,null,"NH","New Hampshire",3]
[null,null,null,null,null,null,null,null,null,null,null,null,null,null,null,null,null,null,null,null,null,null,null,null,null,null,null,null,null,null,null,null,null,null,null,null,null,null,null,null,null,null,null,null,null,null,null,null,null,null,null,null,null,null,null,null,null,null,null,null,null,"Preparer's PTIN",null,null,null,null,null,null,null,null,null,null,null,null,null,null,null,null,null,null,"P03013529",null,null,null,null,null,null,null,null,null,null,null,null,null,null,null,null,null,null,null,null,null,null,null,"NJ","New Jersey",3]
[null,null,null,null,null,null,null,null,null,null,null,null,null,null,null,null,null,null,null,null,null,null,null,null,null,null,null,null,null,null,null,null,null,null,null,null,null,null,null,null,null,null,null,null,null,null,null,null,null,null,null,null,null,null,null,null,null,null,null,null,null,"Preparer's Signature Date",null,null,null,null,null,null,null,null,null,null,null,null,null,null,null,null,null,null,{"$f":"TODAY()","v":"2025-02-10"},null,null,null,null,null,null,null,null,null,null,null,null,null,null,null,null,null,null,null,null,null,null,null,"NM","New Mexico",2]
[null,{"$f":"IF(BJ23=\"\",\"\",BJ23)","v":"You must select a penalty type on line 4"},null,null,null,null,null,null,null,null,null,null,null,null,null,null,null,null,null,null,null,null,null,null,null,null,null,null,null,null,null,null,null,null,null,null,null,null,null,null,null,null,null,null,null,null,null,null,null,null,null,null,null,null,null,null,null,null,null,null,null,"Self-Employment",null,null,null,null,null,null,null,null,null,null,null,null,null,null,null,null,null,null,"Not Self-Employed",null,null,null,null,null,null,null,null,null,null,null,null,null,null,null,null,null,null,null,null,null,null,null,"NY","New York",3]
[null,null,null,null,null,null,null,null,null,null,null,null,null,null,null,null,null,null,null,null,null,null,null,null,null,null,null,null,null,null,null,null,null,null,null,null,null,null,null,null,null,null,null,null,null,null,null,null,null,null,null,null,null,null,null,null,null,null,null,null,null,"PTIN",null,null,null,null,null,null,null,null,null,null,null,null,null,null,null,null,null,null,"P03013529",null,{"$f":"CC38&\", \"&CC39","v":"9301 Ocoee St. #64, Chattanooga, TN 37363"},null,null,null,null,null,null,null,null,null,null,null,null,null,null,null,null,null,null,null,null,null,"NC","North Carolina",1]
[null,null,null,null,null,null,null,null,null,null,null,null,null,null,null,null,null,null,null,null,null,null,null,null,null,null,null,null,null,null,null,null,null,null,null,null,null,null,null,null,null,null,null,null,null,null,null,null,null,null,null,null,null,null,null,null,null,null,null,null,null,"Firm's Name",null,null,null,null,null,null,null,null,null,null,null,null,null,null,null,null,null,null,"dc Tax, LLC",null,null,null,null,null,null,null,null,null,null,null,null,null,null,null,null,null,null,null,null,null,null,null,"ND","North Dakota",4]
[null,null,null,null,null,null,null,null,null,null,null,null,null,null,null,null,null,null,null,null,null,null,null,null,null,null,null,null,null,null,null,null,null,null,null,null,null,null,null,null,null,null,null,null,null,null,null,null,null,null,null,null,null,null,null,null,null,null,null,null,null,"Firm's EIN",null,null,null,null,null,null,null,null,null,null,null,null,null,null,null,null,null,null,"86-3654940",null,null,null,null,null,null,null,null,null,null,null,null,null,null,null,null,null,null,null,null,null,null,null,"OH","Ohio",4]
[null,null,null,null,null,null,null,null,null,null,null,null,null,null,null,null,null,null,null,null,null,null,null,null,null,null,null,null,null,null,null,null,null,null,null,null,null,null,null,null,null,null,null,null,null,null,null,null,null,null,null,null,null,null,null,null,null,null,null,null,null,"Firm's Address",null,null,null,null,null,null,null,null,null,null,null,null,null,null,null,null,null,null,"9301 Ocoee St. #64",null,null,null,null,null,null,null,null,null,null,null,null,null,null,null,null,null,null,null,null,null,null,null,"OK","Oklahoma",5]
[null,null,null,null,null,null,null,null,null,null,null,null,null,null,null,null,null,null,null,null,null,null,null,null,null,null,null,null,null,null,null,null,null,null,null,null,null,null,null,null,null,null,null,null,null,null,null,null,null,null,null,null,null,null,null,null,null,null,null,null,null,"City, St Zip",null,null,null,null,null,null,null,null,null,null,null,null,null,null,null,null,null,null,"Chattanooga, TN 37363",null,null,null,null,null,null,null,null,null,null,null,null,null,null,null,null,null,null,null,null,null,null,null,"OR","Oregon",4]
[null,null,null,null,null,null,null,null,null,null,null,null,null,null,null,null,null,null,null,null,null,null,null,null,null,null,null,null,null,null,null,null,null,null,null,null,null,null,null,null,null,null,null,null,null,null,null,null,null,null,null,null,null,null,null,null,null,null,null,null,null,"Firm's Phone #",null,null,null,null,null,null,null,null,null,null,null,null,null,null,null,null,null,null,4234829737,null,null,null,null,null,null,null,null,null,null,null,null,null,null,null,null,null,null,null,null,null,null,null,"PA","Pennsylvania",6]
[null,null,null,null,null,null,null,null,null,null,null,null,null,null,null,null,null,null,null,null,null,null,null,null,null,null,null,null,null,null,null,null,null,null,null,null,null,null,null,null,null,null,null,null,null,null,null,null,null,null,null,null,null,null,null,null,null,null,null,null,null,null,null,null,null,null,null,null,null,null,null,null,null,null,null,null,null,null,null,null,null,null,null,null,null,null,null,null,null,null,null,null,null,null,null,null,null,null,null,null,null,null,null,null,"RI","Rhode Island",3]
[null,null,null,null,null,null,null,null,null,null,null,null,null,null,null,null,null,null,null,null,null,null,null,null,null,null,null,null,null,null,null,null,null,null,null,null,null,null,null,null,null,null,null,null,null,null,null,null,null,null,null,null,null,null,null,null,null,null,null,null,null,null,null,null,null,null,null,null,null,null,null,null,null,null,null,null,null,null,null,null,null,null,null,null,null,null,null,null,null,null,null,null,null,null,null,null,null,null,null,null,null,null,null,null,"SC","South Carolina",1]
[null,null,null,null,null,null,null,null,null,null,null,null,null,null,null,null,null,null,null,null,null,null,null,null,null,null,null,null,null,null,null,null,null,null,null,null,null,null,null,null,null,null,null,null,null,null,null,null,null,null,null,null,null,null,null,null,null,null,null,null,null,null,null,null,null,null,null,null,null,null,null,null,null,null,null,null,null,null,null,null,null,null,null,null,null,null,null,null,null,null,null,null,null,null,null,null,null,null,null,null,null,null,null,null,"SD","South Dakota",4]
[null,null,null,null,null,null,null,null,null,null,null,null,null,null,null,null,null,null,null,null,null,null,null,null,null,null,null,null,null,null,null,null,null,null,null,null,null,null,null,null,null,null,null,null,null,null,null,null,null,null,null,null,null,null,null,null,null,null,null,null,null,null,null,null,null,null,null,null,null,null,null,null,null,null,null,null,null,null,null,null,null,null,null,null,null,null,null,null,null,null,null,null,null,null,null,null,null,null,null,null,null,null,null,null,"TN","Tennessee",1]
[null,null,null,null,null,null,null,null,null,null,null,null,null,null,null,null,null,null,null,null,null,null,null,null,null,null,null,null,null,null,null,null,null,null,null,null,null,null,null,null,null,null,null,null,null,null,null,null,null,null,null,null,null,null,null,null,null,null,null,null,null,null,null,null,null,null,null,null,null,null,null,null,null,null,null,null,null,null,null,null,null,null,null,null,null,null,null,null,null,null,null,null,null,null,null,null,null,null,null,null,null,null,null,null,"TX","Texas",1]
[null,null,null,null,null,null,null,null,null,null,null,null,null,null,null,null,null,null,null,null,null,null,null,null,null,null,null,null,null,null,null,null,null,null,null,null,null,null,null,null,null,null,null,null,null,null,null,null,null,null,null,null,null,null,null,null,null,null,null,null,null,null,null,null,null,null,null,null,null,null,null,null,null,null,null,null,null,null,null,null,null,null,null,null,null,null,null,null,null,null,null,null,null,null,null,null,null,null,null,null,null,null,null,null,"UT","Utah",4]
[null,null,null,null,null,null,null,null,null,null,null,null,null,null,null,null,null,null,null,null,null,null,null,null,null,null,null,null,null,null,null,null,null,null,null,null,null,null,null,null,null,null,null,null,null,null,null,null,null,null,null,null,null,null,null,null,null,null,null,null,null,null,null,null,null,null,null,null,null,null,null,null,null,null,null,null,null,null,null,null,null,null,null,null,null,null,null,null,null,null,null,null,null,null,null,null,null,null,null,null,null,null,null,null,"VT","Vermont",3]
[null,null,null,null,null,null,{"$f":"CC36&CHAR(10)&CC38&CHAR(10)&CC39","v":"dc Tax, LLC\n9301 Ocoee St. #64\nChattanooga, TN 37363"},null,null,null,null,null,null,null,null,null,null,null,null,null,null,null,null,null,null,null,null,null,null,null,null,null,null,null,null,null,null,null,null,null,null,null,null,null,null,null,null,null,null,null,null,null,null,null,null,null,null,null,null,null,null,null,null,null,null,null,null,null,null,null,null,null,null,null,null,null,null,null,null,null,null,null,null,null,null,null,null,null,null,null,null,null,null,null,null,null,null,null,null,null,null,null,null,null,"VA","Virginia",3]
[null,null,null,null,null,null,null,null,null,null,null,null,null,null,null,null,null,null,null,null,null,null,null,null,null,null,null,null,null,null,null,null,null,null,null,null,null,null,null,null,null,null,null,null,null,null,null,null,null,null,null,null,null,null,null,null,null,null,null,null,null,null,null,null,null,null,null,null,null,null,null,null,null,null,null,null,null,null,null,null,null,null,null,null,null,null,null,null,null,null,null,null,null,null,null,null,null,null,null,null,null,null,null,null,"WA","Washington",4]
[null,null,null,null,null,null,null,null,null,null,null,null,null,null,null,null,null,null,null,null,null,null,null,null,null,null,null,null,null,null,null,null,null,null,null,null,null,null,null,null,null,null,null,null,null,null,null,null,null,null,null,null,null,null,null,null,null,null,null,null,null,null,null,null,null,null,null,null,null,null,null,null,null,null,null,null,null,null,null,null,null,null,null,null,null,null,null,null,null,null,null,null,null,null,null,null,null,null,null,null,null,null,null,null,"WV","West Virginia",3]
[null,null,null,null,null,null,null,null,null,null,null,null,null,null,null,null,null,null,null,null,null,null,null,null,null,null,null,null,null,null,null,null,null,null,null,null,null,null,null,null,null,null,null,null,null,null,null,null,null,null,null,null,null,null,null,null,null,null,null,null,null,null,null,null,null,null,null,null,null,null,null,null,null,null,null,null,null,null,null,null,null,null,null,null,null,null,null,null,null,null,null,null,null,null,null,null,null,null,null,null,null,null,null,null,"WI","Wisconsin",3]
[null,null,null,null,null,null,null,null,null,null,null,null,null,null,null,null,null,null,null,null,null,null,null,null,null,null,null,null,null,null,null,null,null,null,null,null,null,null,null,null,null,null,null,null,null,null,null,null,null,null,null,null,null,null,null,null,null,null,null,null,null,null,null,null,null,null,null,null,null,null,null,null,null,null,null,null,null,null,null,null,null,null,null,null,null,null,null,null,null,null,null,null,null,null,null,null,null,null,null,null,null,null,null,null,"WY","Wyoming",4]
[]
[]
[null,{"$f":"CY8","v":"Department of the Treasury\nInternal Revenue Service\nAustin, TX  73301-0002"}]
[]
[null,null,null,null,null,null,null,null,null,null,null,null,null,null,null,null,null,null,null,null,null,null,null,null,null,null,null,null,null,null,null,null,null,null,null,null,null,null,null,null,null,null,null,null,null,null,null,null,{"$f":"TODAY()","v":"2025-02-10"}]
[]
["Re: ",null,"Request for Penalty Abatement"]
[null,null,{"$f":"IF(OR(CC1=\"\",CC1=\"*\"),\"\",CC1&IF(NOT(CC2=\"\"),\", \"&TEXT(CC2,\"000-00-0000\")&IF(NOT(CC3=\"\"),\" / \"&TEXT(CC3,\"000-00-0000\"),\"\")))","v":""}]
[null,null,{"$f":"CC4","v":"*"}]
[null,null,{"$f":"IF(OR(CC5=\"\",CC5=\"*\"),\"\",CC5)","v":""}]
[]
["To Whom it may concern:"]
[{"$f":"\"We request the proposed or assessed penalties be abated for the taxpayer(s) listed above for the tax year ending \"&IF(CC11=\"\",\"\",TEXT(CC11,\"mm/dd/yyyy\"))&\", Form \"&CC21&\", using the First Time Abatement procedures found in IRM Section 20.1.1.3.3.2.1.\"","v":"We request the proposed or assessed penalties be abated for the taxpayer(s) listed above for the tax year ending *, Form *, using the First Time Abatement procedures found in IRM Section 20.1.1.3.3.2.1."}]
[]
[]
[]
["We ask you provide relief from the following penalties:"]
[]
[{"$f":"BJ23","v":"You must select a penalty type on line 4"}]
[]
[]
[]
[]
["For these reasons, we believe the qualifications for first-time abatement have been met. Your attention to this matter is greatly appreciated."]
[]
[]
["Under penalty of perjury, all statements are true & correct to the best of my knowledge. "]
[]
[{"$f":"\"You can reach me at \"&TEXT($CC$40,\"(000) 000-0000\")&\" if you have questions or require further clarification.\"","v":"You can reach me at (423) 482-9737 if you have questions or require further clarification."}]
[]
["Sincerely,"]
[]
[]
[null,null,null,null,null,null,null,null,null,null,null,null,null,null,null,null,null,null,null,null,null,null,null,null,null,null,null,null,null,null,null,null,null,null,null,null,null,null,null,null,null,null,"Enclosures:"]
[{"$f":"CC29","v":"David W Collins"},null,null,null,null,null,null,null,null,null,null,null,null,null,null,null,null,null,null,null,null,null,null,null,null,null,null,null,null,null,null,null,null,null,null,null,null,null,null,null,null,null,null,null,"Form 843"]
[{"$f":"CC30","v":"Enrolled Agent"},null,null,null,null,null,null,null,null,null,null,null,null,null,null,null,null,null,null,null,null,null,null,null,null,null,null,null,null,null,null,null,null,null,null,null,null,null,null,null,null,null,null,null,"Form 2848"]
[{"$f":"\"CAF # \"&CC31","v":"CAF # 0315-5449R"}]

{"sheet":"NewF843-FTA","index":3,"n_rows":52,"n_cols":114,"rows_kept":52,"cut":false,"hidden":false,"merged":[[0,61,0,79],[1,61,1,79],[2,61,2,79],[3,61,3,79],[4,61,4,79],[15,61,15,69],[15,71,15,79],[5,82,6,97],[6,61,6,79],[7,61,7,79],[8,61,8,79],[9,61,10,64],[9,65,10,69],[9,70,9,79],[10,70,10,79],[5,61,5,79],[11,61,11,79],[12,61,12,79],[13,61,13,79],[13,82,13,91],[14,61,14,79],[28,61,28,79],[16,61,16,69],[16,71,16,79],[16,82,17,92],[17,61,17,69],[17,71,17,79],[18,61,18,69],[18,71,18,79],[18,82,19,92],[19,61,19,69],[19,71,19,79],[20,61,20,79],[21,61,21,79],[22,61,25,80],[26,61,26,79],[27,61,27,79],[29,61,29,79],[30,61,30,79],[31,61,31,79],[32,61,32,79],[33,61,33,79],[41,61,41,79],[34,82,34,98],[35,61,35,79],[36,61,36,79],[37,61,37,79],[38,61,38,79],[39,61,39,79],[34,61,34,79]]}
[null,null,null,null,null,null,null,null,null,null,null,null,null,null,null,null,null,null,null,null,null,null,null,null,null,null,null,null,null,null,null,null,null,null,null,null,null,null,null,null,null,null,null,null,null,null,null,null,null,null,null,null,null,null,null,null,null,null,null,null,null,"Taxpayer & Spouse Name",null,null,null,null,null,null,null,null,null,null,null,null,null,null,null,null,null,null,"*",null,null,null,null,null,null,null,null,null,null,null,null,null,null,null,null,null,null,"Penalty","Code",null,null,null,"State Abbr","State","Code",null,"Code","AddressL1","AddressL2","AddressL3"]
[null,null,null,null,null,null,null,null,null,null,null,null,null,null,null,null,null,null,null,null,null,null,null,null,null,null,null,null,null,null,null,null,null,null,null,null,null,null,null,null,null,null,null,null,null,null,null,null,null,null,null,null,null,null,null,null,null,null,null,null,null,"Taxpayer SSN",null,null,null,null,null,null,null,null,null,null,null,null,null,null,null,null,null,null,"*",null,null,null,null,null,null,null,null,null,null,null,null,null,null,null,null,null,null,"Failure to File tax return - §IRC 6651(a)(1) ","§IRC 6651(a)(1)",null,null,null,"AL","Alabama",1,null,1,"Department of the Treasury","Internal Revenue Service ","Austin, TX  73301-0002",null,{"$f":"\"l3=\"&DH3","v":"l3=Austin, TX 73301-0002"}]
[null,null,null,null,null,null,null,null,null,null,null,null,null,null,null,null,null,null,null,null,null,null,null,null,null,null,null,null,null,null,null,null,null,null,null,null,null,null,null,null,null,null,null,null,null,null,null,null,null,null,null,null,null,null,null,null,null,null,null,null,null,"Spouse SSN",null,null,null,null,null,null,null,null,null,null,null,null,null,null,null,null,null,null,null,null,null,null,null,null,null,null,null,null,null,null,null,null,null,null,null,null,null,"Failure to File Partnership return - §IRC 6698(a)(1)","§IRC 6698(a)(1)",null,null,null,"AK","Alaska",4,null,2,"Department of the Treasury","Internal Revenue Service ","Austin, TX 73301-0002",null,{"$f":"\"l3=\"&DH4","v":"l3=Kansas City, MO 64999-0002"}]
[null,null,null,null,null,null,null,null,null,null,null,null,null,null,null,null,null,null,null,null,null,null,null,null,null,null,null,null,null,null,null,null,null,null,null,null,null,null,null,null,null,null,null,null,null,null,null,null,null,null,null,null,null,null,null,null,null,null,null,null,null,"Address",null,null,null,null,null,null,null,null,null,null,null,null,null,null,null,null,null,null,"*",null,null,null,null,null,null,null,null,null,null,null,null,null,null,null,null,null,null,"Failure to File S-Corp return - §IRC 6699(a)(1)","§IRC 6699(a)(1)",null,null,null,"AZ","Arizona",2,null,3,"Department of the Treasury","Internal Revenue Service ","Kansas City, MO 64999-0002",null,"l3=Ogden, UT 84201-0002"]
[null,null,null,null,null,null,null,null,null,null,null,null,null,null,null,null,null,null,null,null,null,null,null,null,null,null,null,null,null,null,null,null,null,null,null,null,null,null,null,null,null,null,null,null,null,null,null,null,null,null,null,null,null,null,null,null,null,null,null,null,null,"City, St Zip",null,null,null,null,null,null,null,null,null,null,null,null,null,null,null,null,null,null,"*",null,null,null,null,null,null,null,null,null,null,null,null,null,null,null,null,null,null,"Failure to Pay (tax reported) §IRC 6651(a)(2)","§IRC 6651(a)(2)",null,null,null,"AR","Arkansas",5,null,4,"Department of Treasury","Internal Revenue Service ","Ogden, UT 84201-0002",null,"l3=Austin, TX  73301-0002"]
[null,null,null,null,null,null,null,null,null,null,null,null,null,null,null,null,null,null,null,null,null,null,null,null,null,null,null,null,null,null,null,null,null,null,null,null,null,null,null,null,null,null,null,null,null,null,null,null,null,null,null,null,null,null,null,null,null,null,null,null,null,"Return Address if different",null,null,null,null,null,null,null,null,null,null,null,null,null,null,null,null,null,null,null,null,null,null,null,null,null,null,null,null,null,null,null,null,null,null,null,null,null,"Failure to Pay (tax unreported) §IRC 6651(a)(3)","§IRC 6651(a)(3)",null,null,null,"CA","California",4,null,5,"Department of the Treasury","Internal Revenue Service ","Austin, TX  73301-0002",null,"l3=Kansas City, MO 64999-0002"]
[null,null,null,null,null,null,null,null,null,null,null,null,null,null,null,null,null,null,null,null,null,null,null,null,null,null,null,null,null,null,null,null,null,null,null,null,null,null,null,null,null,null,null,null,null,null,null,null,null,null,null,null,null,null,null,null,null,null,null,null,null,"City, St Zip if different",null,null,null,null,null,null,null,null,null,null,null,null,null,null,null,null,null,null,null,null,null,null,null,null,null,null,null,null,null,null,null,null,null,null,null,null,null,"Failure to Deposit §IRC 6656","§IRC 6656","STATE Abbreviation",null,null,"CO","Colorado",4,null,6,"Department of the Treasury","Internal Revenue Service ","Kansas City, MO 64999-0002"]
[null,null,null,null,null,null,null,null,null,null,null,null,null,null,null,null,null,null,null,null,null,null,null,null,null,null,null,null,null,null,null,null,null,null,null,null,null,null,null,null,null,null,null,null,null,null,null,null,null,null,null,null,null,null,null,null,null,null,null,null,null,"Business EIN",null,null,null,null,null,null,null,null,null,null,null,null,null,null,null,null,null,null,null,null,null,null,null,null,null,null,null,null,null,null,null,null,null,null,null,null,null,null,null,{"$f":"IF(OR(CC5=\"*\",CC5=\"\"),\"\",MID(CC5,FIND(CHAR(160),SUBSTITUTE(CC5,\" \",CHAR(160),LEN(CC5)-LEN(SUBSTITUTE(CC5,\" \",\"\"))-1))+1,2))","v":""},"Department of the Treasury\nInternal Revenue Service\nAustin, TX  73301-0002",null,"CT","Connecticut",3]
[null,null,null,null,null,null,null,null,null,null,null,null,null,null,null,null,null,null,null,null,null,null,null,null,null,null,null,null,null,null,null,null,null,null,null,null,null,null,null,null,null,null,null,null,null,null,null,null,null,null,null,null,null,null,null,null,null,null,null,null,null,"Daytime Phone Number",null,null,null,null,null,null,null,null,null,null,null,null,null,null,null,null,null,null,"*",null,{"$f":"TEXT(IF(CC9=\"*\",CC40,CC9),\"(000) 000-0000\")","v":"(423) 482-9737"},null,null,null,null,null,null,null,null,null,null,null,null,null,null,null,null,null,null,"State Code",null,null,"DE","Delaware",3]
[null,null,null,null,null,null,null,null,null,null,null,null,null,null,null,null,null,null,null,null,null,null,null,null,null,null,null,null,null,null,null,null,null,null,null,null,null,null,null,null,null,null,null,null,null,null,null,null,null,null,null,null,null,null,null,null,null,null,null,null,null,"1)  Tax Year:",null,null,null,null,null,null,null,null,"Period   From:",null,null,null,null,null,null,null,null,null,"*",null,null,null,null,null,null,null,null,null,null,null,null,null,null,null,null,null,null,"Type of Fee or Return",null,{"$f":"IF(CX8=\"\",\"\",_xlfn.XLOOKUP(CX8,SvcCentersTbl9[State Abbr],SvcCentersTbl9[Code]))","v":""},null,null,"DC","District of Columbia",3]
[null,null,null,null,null,null,null,null,null,null,null,null,null,null,null,null,null,null,null,null,null,null,null,null,null,null,null,null,null,null,null,null,null,null,null,null,null,null,null,null,null,null,null,null,null,null,null,null,null,null,null,null,null,null,null,null,null,null,null,null,null,null,null,null,null,null,null,null,null,null,"Period   To:",null,null,null,null,null,null,null,null,null,"*",null,null,null,null,null,null,null,null,null,null,null,null,null,null,null,null,null,null,"706 (Estate)",null,null,null,null,"FL","Florida",1]
[null,null,null,null,null,null,null,null,null,null,null,null,null,null,null,null,null,null,null,null,null,null,null,null,null,null,null,null,null,null,null,null,null,null,null,null,null,null,null,null,null,null,null,null,null,null,null,null,null,null,null,null,null,null,null,null,null,null,null,null,null,"2)  Amount",null,null,null,null,null,null,null,null,null,null,null,null,null,null,null,null,null,null,"*",null,null,null,null,null,null,null,null,null,null,null,null,null,null,null,null,null,null,"709 (Gift)",null,null,null,null,"GA","Georgia",1]
[null,null,null,null,null,null,null,null,null,null,null,null,null,null,null,null,null,null,null,null,null,null,null,null,null,null,null,null,null,null,null,null,null,null,null,null,null,null,null,null,null,null,null,null,null,null,null,null,null,null,null,null,null,null,null,null,null,null,null,null,null,"3)  Type of Tax",null,null,null,null,null,null,null,null,null,null,null,null,null,null,null,null,null,null,"Income",null,null,null,null,null,true,null,null,null,null,null,null,null,null,null,null,null,null,"940 (Unemployment)",null,null,null,null,"HI","Hawaii",4]
[null,null,null,null,null,null,null,null,null,null,null,null,null,null,null,null,null,null,null,null,null,null,null,null,null,null,null,null,null,null,null,null,null,null,null,null,null,null,null,null,null,null,null,null,null,null,null,null,null,null,null,null,null,null,null,null,null,null,null,null,null,"4)  Type of Penalty",null,null,null,null,null,null,null,null,null,null,null,null,null,null,null,null,null,null,"*",null,{"$f":"_xlfn.XLOOKUP(CC14,Penalty_Types,Code)","v":{"$error":"#N/A"}},null,null,null,null,null,null,null,null,null,null,null,null,null,null,null,null,"941 (Qtrly Employment)",null,null,null,null,"ID","Idaho",4]
[null,null,null,null,null,null,null,null,null,null,null,null,null,null,null,null,null,null,null,null,null,null,null,null,null,null,null,null,null,null,null,null,null,null,null,null,null,null,null,null,null,null,null,null,null,null,null,null,null,null,null,null,null,null,null,null,null,null,null,null,null,"5a)  Reason for abatement",null,null,null,null,null,null,null,null,null,null,null,null,null,null,null,null,null,null,"*",null,null,null,null,null,null,null,null,null,null,null,null,null,null,null,null,null,null,"943 (Annual Agriculture)",null,null,null,null,"IL","Illinois",3]
[null,null,null,null,null,null,null,null,null,null,null,null,null,null,null,null,null,null,null,null,null,null,null,null,null,null,null,null,null,null,null,null,null,null,null,null,null,null,null,null,null,null,null,null,null,null,null,null,null,null,null,null,null,null,null,null,null,null,null,null,null,"Date",null,null,null,null,null,null,null,null,null,"Amount",null,null,null,null,null,null,null,null,"5b)  Payments",null,null,null,null,null,null,null,null,null,null,null,null,null,null,null,null,null,null,"945 (Annual WH)",null,null,null,null,"IN","Indiana",3]
[null,null,null,null,null,null,null,null,null,null,null,null,null,null,null,null,null,null,null,null,null,null,null,null,null,null,null,null,null,null,null,null,null,null,null,null,null,null,null,null,null,null,null,null,null,null,null,null,null,null,null,null,null,null,null,null,null,null,null,null,null,null,null,null,null,null,null,null,null,null,null,null,null,null,null,null,null,null,null,null,{"$f":"IF(BJ17=\"\",\"\",TEXT(BJ17,\"mm/dd/yyyy\")&IF(BT17=\"\",\"\",\" - \"&TEXT(BT17,\"$0,000\")))","v":""},null,{"$f":"_xlfn.TEXTJOIN(CHAR(10),TRUE,CC17:CC18)","v":""},null,null,null,null,null,null,null,null,null,null,null,null,null,null,null,null,"990 (Exempt)",null,null,null,null,"IA","Iowa",3]
[null,null,null,null,null,null,null,null,null,null,null,null,null,null,null,null,null,null,null,null,null,null,null,null,null,null,null,null,null,null,null,null,null,null,null,null,null,null,null,null,null,null,null,null,null,null,null,null,null,null,null,null,null,null,null,null,null,null,null,null,null,null,null,null,null,null,null,null,null,null,null,null,null,null,null,null,null,null,null,null,{"$f":"IF(BJ18=\"\",\"\",TEXT(BJ18,\"mm/dd/yyyy\")&IF(BT18=\"\",\"\",\" - \"&TEXT(BT18,\"$0,000\")))","v":""},null,null,null,null,null,null,null,null,null,null,null,null,null,null,null,null,null,null,"1040 (Individual Income)",null,null,null,null,"KS","Kansas",4]
[null,null,null,null,null,null,null,null,null,null,null,null,null,null,null,null,null,null,null,null,null,null,null,null,null,null,null,null,null,null,null,null,null,null,null,null,null,null,null,null,null,null,null,null,null,null,null,null,null,null,null,null,null,null,null,null,null,null,null,null,null,null,null,null,null,null,null,null,null,null,null,null,null,null,null,null,null,null,null,null,"",null,{"$f":"_xlfn.TEXTJOIN(CHAR(10),TRUE,CC19:CC20)","v":""},null,null,null,null,null,null,null,null,null,null,null,null,null,null,null,null,"1120 (Corporate Tax)",null,null,null,null,"KY","Kentucky",3]
[null,null,null,null,null,null,null,null,null,null,null,null,null,null,null,null,null,null,null,null,null,null,null,null,null,null,null,null,null,null,null,null,null,null,null,null,null,null,null,null,null,null,null,null,null,null,null,null,null,null,null,null,null,null,null,null,null,null,null,null,null,null,null,null,null,null,null,null,null,null,null,null,null,null,null,null,null,null,null,null,"",null,null,null,null,null,null,null,null,null,null,null,null,null,null,null,null,null,null,"4720 (Excise)",null,null,null,null,"LA","Louisiana",1]
[null,null,null,null,null,null,null,null,null,null,null,null,null,null,null,null,null,null,null,null,null,null,null,null,null,null,null,null,null,null,null,null,null,null,null,null,null,null,null,null,null,null,null,null,null,null,null,null,null,null,null,null,null,null,null,null,null,null,null,null,null,"6)  Original Return",null,null,null,null,null,null,null,null,null,null,null,null,null,null,null,null,null,null,"*",null,null,null,null,null,null,null,null,null,null,null,null,null,null,null,null,null,null,"Other:",null,null,null,null,"ME","Maine",3]
[null,null,null,null,null,null,null,null,null,null,null,null,null,null,null,null,null,null,null,null,null,null,null,null,null,null,null,null,null,null,null,null,null,null,null,null,null,null,null,null,null,null,null,null,null,null,null,null,null,null,null,null,null,null,null,null,null,null,null,null,null,"↓↓ Explanation: ↓↓",null,null,null,null,null,null,null,null,null,null,null,null,null,null,null,null,null,null,null,null,null,null,null,null,null,null,null,null,null,null,null,null,null,null,null,null,null,null,null,null,null,null,"MD","Maryland",3]
[null,null,null,null,null,null,null,null,null,null,null,null,null,null,null,null,null,null,null,null,null,null,null,null,null,null,null,null,null,null,null,null,null,null,null,null,null,null,null,null,null,null,null,null,null,null,null,null,null,null,null,null,null,null,null,null,null,null,null,null,null,"You must select a penalty type on line 4",null,null,null,null,null,null,null,null,null,null,null,null,null,null,null,null,null,null,null,null,null,null,null,null,null,null,null,null,null,null,null,null,null,null,null,null,null,null,null,null,null,null,"MA","Massachusetts",3]
[null,null,null,null,null,null,null,null,null,null,null,null,null,null,null,null,null,null,null,null,null,null,null,null,null,null,null,null,null,null,null,null,null,null,null,null,null,null,null,null,null,null,null,null,null,null,null,null,null,null,null,null,null,null,null,null,null,null,null,null,null,null,null,null,null,null,null,null,null,null,null,null,null,null,null,null,null,null,null,null,null,null,null,null,null,null,null,null,null,null,null,null,null,null,null,null,null,null,null,"Interest, Penalties, Additions",null,null,null,null,"MI","Michigan",4]
[null,null,null,null,null,null,null,null,null,null,null,null,null,null,null,null,null,null,null,null,null,null,null,null,null,null,null,null,null,null,null,null,null,null,null,null,null,null,null,null,null,null,null,null,null,null,null,null,null,null,null,null,null,null,null,null,null,null,null,null,null,null,null,null,null,null,null,null,null,null,null,null,null,null,null,null,null,null,null,null,null,null,null,null,null,null,null,null,null,null,null,null,null,null,null,null,null,null,null,"Penalty result of IRS errors or delays",null,null,null,null,"MN","Minnesota",3]
[null,null,null,null,null,null,null,null,null,null,null,null,null,null,null,null,null,null,null,null,null,null,null,null,null,null,null,null,null,null,null,null,null,null,null,null,null,null,null,null,null,null,null,null,null,null,null,null,null,null,null,null,null,null,null,null,null,null,null,null,null,null,null,null,null,null,null,null,null,null,null,null,null,null,null,null,null,null,null,null,null,null,null,null,null,null,null,null,null,null,null,null,null,null,null,null,null,null,null,"Penalty result of IRS erroneous written advice",null,null,null,null,"MS","Mississippi",1]
[null,null,null,null,null,null,null,null,null,null,null,null,null,null,null,null,null,null,null,null,null,null,null,null,null,null,null,null,null,null,null,null,null,null,null,null,null,null,null,null,null,null,null,null,null,null,null,null,null,null,null,null,null,null,null,null,null,null,null,null,null,"Signature 1 Date",null,null,null,null,null,null,null,null,null,null,null,null,null,null,null,null,null,null,null,null,null,null,null,null,null,null,null,null,null,null,null,null,null,null,null,null,null,"Reasonable Cause",null,null,null,null,"MO","Missouri",3]
[null,null,null,null,null,null,null,null,null,null,null,null,null,null,null,null,null,null,null,null,null,null,null,null,null,null,null,null,null,null,null,null,null,null,null,null,null,null,null,null,null,null,null,null,null,null,null,null,null,null,null,null,null,null,null,null,null,null,null,null,null,"Signature 2 Date",null,null,null,null,null,null,null,null,null,null,null,null,null,null,null,null,null,null,null,null,null,null,null,null,null,null,null,null,null,null,null,null,null,null,null,null,null,"FTA - First Time Abatement",null,null,null,null,"MT","Montana",4]
[null,null,null,null,null,null,null,null,null,null,null,null,null,null,null,null,null,null,null,null,null,null,null,null,null,null,null,null,null,null,null,null,null,null,null,null,null,null,null,null,null,null,null,null,null,null,null,null,null,null,null,null,null,null,null,null,null,null,null,null,null,"Preparer's Name",null,null,null,null,null,null,null,null,null,null,null,null,null,null,null,null,null,null,"David W Collins",null,null,null,null,null,null,null,null,null,null,null,null,null,null,null,null,null,null,null,null,null,null,null,"NE","Nebraska",4]
[null,null,null,null,null,null,null,null,null,null,null,null,null,null,null,null,null,null,null,null,null,null,null,null,null,null,null,null,null,null,null,null,null,null,null,null,null,null,null,null,null,null,null,null,null,null,null,null,null,null,null,null,null,null,null,null,null,null,null,null,null,"Preparer's Title",null,null,null,null,null,null,null,null,null,null,null,null,null,null,null,null,null,null,"Enrolled Agent",null,null,null,null,null,null,null,null,null,null,null,null,null,null,null,null,null,null,null,null,null,null,null,"NV","Nevada",4]
[null,null,null,null,null,null,null,null,null,null,null,null,null,null,null,null,null,null,null,null,null,null,null,null,null,null,null,null,null,null,null,null,null,null,null,null,null,null,null,null,null,null,null,null,null,null,null,null,null,null,null,null,null,null,null,null,null,null,null,null,null,"Preparer's CAF #",null,null,null,null,null,null,null,null,null,null,null,null,null,null,null,null,null,null,"0315-5449R",null,null,null,null,null,null,null,null,null,null,null,null,null,null,null,null,null,null,null,null,null,null,null,"NH","New Hampshire",3]
[null,null,null,null,null,null,null,null,null,null,null,null,null,null,null,null,null,null,null,null,null,null,null,null,null,null,null,null,null,null,null,null,null,null,null,null,null,null,null,null,null,null,null,null,null,null,null,null,null,null,null,null,null,null,null,null,null,null,null,null,null,"Preparer's PTIN",null,null,null,null,null,null,null,null,null,null,null,null,null,null,null,null,null,null,"P03013529",null,null,null,null,null,null,null,null,null,null,null,null,null,null,null,null,null,null,null,null,null,null,null,"NJ","New Jersey",3]
[null,null,null,null,null,null,null,null,null,null,null,null,null,null,null,null,null,null,null,null,null,null,null,null,null,null,null,null,null,null,null,null,null,null,null,null,null,null,null,null,null,null,null,null,null,null,null,null,null,null,null,null,null,null,null,null,null,null,null,null,null,"Preparer's Signature Date",null,null,null,null,null,null,null,null,null,null,null,null,null,null,null,null,null,null,{"$f":"TODAY()","v":"2025-02-10"},null,null,null,null,null,null,null,null,null,null,null,null,null,null,null,null,null,null,null,null,null,null,null,"NM","New Mexico",2]
[null,null,null,null,null,null,null,null,null,null,null,null,null,null,null,null,null,null,null,null,null,null,null,null,null,null,null,null,null,null,null,null,null,null,null,null,null,null,null,null,null,null,null,null,null,null,null,null,null,null,null,null,null,null,null,null,null,null,null,null,null,"Self-Employment",null,null,null,null,null,null,null,null,null,null,null,null,null,null,null,null,null,null,"Not Self-Employed",null,null,null,null,null,null,null,null,null,null,null,null,null,null,null,null,null,null,null,null,null,null,null,"NY","New York",3]
[null,null,null,null,null,null,null,null,null,null,null,null,null,null,null,null,null,null,null,null,null,null,null,null,null,null,null,null,null,null,null,null,null,null,null,null,null,null,null,null,null,null,null,null,null,null,null,null,null,null,null,null,null,null,null,null,null,null,null,null,null,"PTIN",null,null,null,null,null,null,null,null,null,null,null,null,null,null,null,null,null,null,"P03013529",null,{"$f":"CC38&\", \"&CC39","v":"9301 Ocoee St. #64, Chattanooga, TN 37363"},null,null,null,null,null,null,null,null,null,null,null,null,null,null,null,null,null,null,null,null,null,"NC","North Carolina",1]
[null,null,null,null,null,null,null,null,null,null,null,null,null,null,null,null,null,null,null,null,null,null,null,null,null,null,null,null,null,null,null,null,null,null,null,null,null,null,null,null,null,null,null,null,null,null,null,null,null,null,null,null,null,null,null,null,null,null,null,null,null,"Firm's Name",null,null,null,null,null,null,null,null,null,null,null,null,null,null,null,null,null,null,"dc Tax, LLC",null,null,null,null,null,null,null,null,null,null,null,null,null,null,null,null,null,null,null,null,null,null,null,"ND","North Dakota",4]
[null,null,null,null,null,null,null,null,null,null,null,null,null,null,null,null,null,null,null,null,null,null,null,null,null,null,null,null,null,null,null,null,null,null,null,null,null,null,null,null,null,null,null,null,null,null,null,null,null,null,null,null,null,null,null,null,null,null,null,null,null,"Firm's EIN",null,null,null,null,null,null,null,null,null,null,null,null,null,null,null,null,null,null,"86-3654940",null,null,null,null,null,null,null,null,null,null,null,null,null,null,null,null,null,null,null,null,null,null,null,"OH","Ohio",4]
[null,null,null,null,null,null,null,null,null,null,null,null,null,null,null,null,null,null,null,null,null,null,null,null,null,null,null,null,null,null,null,null,null,null,null,null,null,null,null,null,null,null,null,null,null,null,null,null,null,null,null,null,null,null,null,null,null,null,null,null,null,"Firm's Address",null,null,null,null,null,null,null,null,null,null,null,null,null,null,null,null,null,null,"9301 Ocoee St. #64",null,null,null,null,null,null,null,null,null,null,null,null,null,null,null,null,null,null,null,null,null,null,null,"OK","Oklahoma",5]
[null,null,null,null,null,null,null,null,null,null,null,null,null,null,null,null,null,null,null,null,null,null,null,null,null,null,null,null,null,null,null,null,null,null,null,null,null,null,null,null,null,null,null,null,null,null,null,null,null,null,null,null,null,null,null,null,null,null,null,null,null,"City, St Zip",null,null,null,null,null,null,null,null,null,null,null,null,null,null,null,null,null,null,"Chattanooga, TN 37363",null,null,null,null,null,null,null,null,null,null,null,null,null,null,null,null,null,null,null,null,null,null,null,"OR","Oregon",4]
[null,null,null,null,null,null,null,null,null,null,null,null,null,null,null,null,null,null,null,null,null,null,null,null,null,null,null,null,null,null,null,null,null,null,null,null,null,null,null,null,null,null,null,null,null,null,null,null,null,null,null,null,null,null,null,null,null,null,null,null,null,"Firm's Phone #",null,null,null,null,null,null,null,null,null,null,null,null,null,null,null,null,null,null,4234829737,null,null,null,null,null,null,null,null,null,null,null,null,null,null,null,null,null,null,null,null,null,null,null,"PA","Pennsylvania",6]
[null,null,null,null,null,null,null,null,null,null,null,null,null,null,null,null,null,null,null,null,null,null,null,null,null,null,null,null,null,null,null,null,null,null,null,null,null,null,null,null,null,null,null,null,null,null,null,null,null,null,null,null,null,null,null,null,null,null,null,null,null,null,null,null,null,null,null,null,null,null,null,null,null,null,null,null,null,null,null,null,null,null,null,null,null,null,null,null,null,null,null,null,null,null,null,null,null,null,null,null,null,null,null,null,"RI","Rhode Island",3]
[null,null,null,null,null,null,null,null,null,null,null,null,null,null,null,null,null,null,null,null,null,null,null,null,null,null,null,null,null,null,null,null,null,null,null,null,null,null,null,null,null,null,null,null,null,null,null,null,null,null,null,null,null,null,null,null,null,null,null,null,null,null,null,null,null,null,null,null,null,null,null,null,null,null,null,null,null,null,null,null,null,null,null,null,null,null,null,null,null,null,null,null,null,null,null,null,null,null,null,null,null,null,null,null,"SC","South Carolina",1]
[null,null,null,null,null,null,null,null,null,null,null,null,null,null,null,null,null,null,null,null,null,null,null,null,null,null,null,null,null,null,null,null,null,null,null,null,null,null,null,null,null,null,null,null,null,null,null,null,null,null,null,null,null,null,null,null,null,null,null,null,null,null,null,null,null,null,null,null,null,null,null,null,null,null,null,null,null,null,null,null,null,null,null,null,null,null,null,null,null,null,null,null,null,null,null,null,null,null,null,null,null,null,null,null,"SD","South Dakota",4]
[null,null,null,null,null,null,null,null,null,null,null,null,null,null,null,null,null,null,null,null,null,null,null,null,null,null,null,null,null,null,null,null,null,null,null,null,null,null,null,null,null,null,null,null,null,null,null,null,null,null,null,null,null,null,null,null,null,null,null,null,null,null,null,null,null,null,null,null,null,null,null,null,null,null,null,null,null,null,null,null,null,null,null,null,null,null,null,null,null,null,null,null,null,null,null,null,null,null,null,null,null,null,null,null,"TN","Tennessee",1]
[null,null,null,null,null,null,null,null,null,null,null,null,null,null,null,null,null,null,null,null,null,null,null,null,null,null,null,null,null,null,null,null,null,null,null,null,null,null,null,null,null,null,null,null,null,null,null,null,null,null,null,null,null,null,null,null,null,null,null,null,null,null,null,null,null,null,null,null,null,null,null,null,null,null,null,null,null,null,null,null,null,null,null,null,null,null,null,null,null,null,null,null,null,null,null,null,null,null,null,null,null,null,null,null,"TX","Texas",1]
[null,null,null,null,null,null,null,null,null,null,null,null,null,null,null,null,null,null,null,null,null,null,null,null,null,null,null,null,null,null,null,null,null,null,null,null,null,null,null,null,null,null,null,null,null,null,null,null,null,null,null,null,null,null,null,null,null,null,null,null,null,null,null,null,null,null,null,null,null,null,null,null,null,null,null,null,null,null,null,null,null,null,null,null,null,null,null,null,null,null,null,null,null,null,null,null,null,null,null,null,null,null,null,null,"UT","Utah",4]
[null,null,null,null,null,null,null,null,null,null,null,null,null,null,null,null,null,null,null,null,null,null,null,null,null,null,null,null,null,null,null,null,null,null,null,null,null,null,null,null,null,null,null,null,null,null,null,null,null,null,null,null,null,null,null,null,null,null,null,null,null,null,null,null,null,null,null,null,null,null,null,null,null,null,null,null,null,null,null,null,null,null,null,null,null,null,null,null,null,null,null,null,null,null,null,null,null,null,null,null,null,null,null,null,"VT","Vermont",3]
[null,null,null,null,null,null,null,null,null,null,null,null,null,null,null,null,null,null,null,null,null,null,null,null,null,null,null,null,null,null,null,null,null,null,null,null,null,null,null,null,null,null,null,null,null,null,null,null,null,null,null,null,null,null,null,null,null,null,null,null,null,null,null,null,null,null,null,null,null,null,null,null,null,null,null,null,null,null,null,null,null,null,null,null,null,null,null,null,null,null,null,null,null,null,null,null,null,null,null,null,null,null,null,null,"VA","Virginia",3]
[null,null,null,null,null,null,null,null,null,null,null,null,null,null,null,null,null,null,null,null,null,null,null,null,null,null,null,null,null,null,null,null,null,null,null,null,null,null,null,null,null,null,null,null,null,null,null,null,null,null,null,null,null,null,null,null,null,null,null,null,null,null,null,null,null,null,null,null,null,null,null,null,null,null,null,null,null,null,null,null,null,null,null,null,null,null,null,null,null,null,null,null,null,null,null,null,null,null,null,null,null,null,null,null,"WA","Washington",4]
[null,null,null,null,null,null,null,null,null,null,null,null,null,null,null,null,null,null,null,null,null,null,null,null,null,null,null,null,null,null,null,null,null,null,null,null,null,null,null,null,null,null,null,null,null,null,null,null,null,null,null,null,null,null,null,null,null,null,null,null,null,null,null,null,null,null,null,null,null,null,null,null,null,null,null,null,null,null,null,null,null,null,null,null,null,null,null,null,null,null,null,null,null,null,null,null,null,null,null,null,null,null,null,null,"WV","West Virginia",3]
[null,null,null,null,null,null,null,null,null,null,null,null,null,null,null,null,null,null,null,null,null,null,null,null,null,null,null,null,null,null,null,null,null,null,null,null,null,null,null,null,null,null,null,null,null,null,null,null,null,null,null,null,null,null,null,null,null,null,null,null,null,null,null,null,null,null,null,null,null,null,null,null,null,null,null,null,null,null,null,null,null,null,null,null,null,null,null,null,null,null,null,null,null,null,null,null,null,null,null,null,null,null,null,null,"WI","Wisconsin",3]
[null,null,null,null,null,null,null,null,null,null,null,null,null,null,null,null,null,null,null,null,null,null,null,null,null,null,null,null,null,null,null,null,null,null,null,null,null,null,null,null,null,null,null,null,null,null,null,null,null,null,null,null,null,null,null,null,null,null,null,null,null,null,null,null,null,null,null,null,null,null,null,null,null,null,null,null,null,null,null,null,null,null,null,null,null,null,null,null,null,null,null,null,null,null,null,null,null,null,null,null,null,null,null,null,"WY","Wyoming",4]

{"sheet":"FOIA Addl Assmt","index":4,"n_rows":117,"n_cols":48,"rows_kept":117,"cut":false,"hidden":false,"merged":[[0,35,0,44],[1,35,1,44],[9,6,11,13],[12,1,12,13],[18,1,24,14],[4,35,4,44],[5,35,5,44],[6,35,6,44],[3,43,3,44],[2,35,3,42],[2,43,2,44],[116,3,132,25],[53,1,53,33],[54,1,54,33],[60,1,60,33],[58,1,58,33],[57,1,57,33],[56,1,56,33],[32,8,32,24],[33,8,33,21],[34,8,34,18],[1,1,4,33],[97,3,113,25],[46,2,46,33],[47,2,47,33],[48,2,48,33],[49,2,49,33],[44,2,44,33],[45,2,45,33],[39,1,43,33],[30,27,30,33]]}
[null,null,null,null,null,null,null,null,null,null,null,null,null,null,null,null,null,null,null,null,null,null,null,null,null,null,null,null,null,null,null,null,null,null,null,"TP's Name:",null,null,null,null,null,null,null,null,null,null,null,"↓ Spouse SSN ↓"]
[null,"FOIA Request for Add'l Assessments",null,null,null,null,null,null,null,null,null,null,null,null,null,null,null,null,null,null,null,null,null,null,null,null,null,null,null,null,null,null,null,null,null,"TP's SSN:"]
[null,null,null,null,null,null,null,null,null,null,null,null,null,null,null,null,null,null,null,null,null,null,null,null,null,null,null,null,null,null,null,null,null,null,null,"Periods covered by request",null,null,null,null,null,null,null,"Start",null,null,null,"↓ Tax Year ↓"]
[null,null,null,null,null,null,null,null,null,null,null,null,null,null,null,null,null,null,null,null,null,null,null,null,null,null,null,null,null,null,null,null,null,null,null,null,null,null,null,null,null,null,null,"End"]
[null,null,null,null,null,null,null,null,null,null,null,null,null,null,null,null,null,null,null,null,null,null,null,null,null,null,null,null,null,null,null,null,null,null,null,"Amount assessed:"]
[null,null,null,null,null,null,null,null,null,null,null,null,null,null,null,null,null,null,null,null,null,null,null,null,null,null,null,null,null,null,null,null,null,null,null,"Date assessed:"]
[null,null,null,null,null,null,null,null,null,null,null,null,null,null,null,null,null,null,null,null,null,null,null,null,null,null,null,null,null,null,null,null,null,null,null,"Tax Form:"]
[]
[]
[null,null,null,null,null,null,"dc Tax, LLC \n9301 Ocoee St, #64\nChattanooga, TN 37363"]
[]
[]
[null,"IRS representation for individuals & small business         "]
[]
[]
[]
[]
[]
[null,"FOIA Requester Service Center\nInternal Revenue Service\nCentral Processing Unit Stop 211\nP.O. Box 621506\nAtlanta, GA 30362-3006"]
[]
[]
[]
[]
[]
[]
[]
[null,"David W Collins"]
[null,"9301 Ocoee St., #64"]
[null,"Ooltewah, TN 37363"]
[null,"P: (423) 482-9737"]
[null,"F: (423) 558-3274"]
[]
[null,"Taxpayer Name:",null,null,null,null,null,null,{"$f":"AU1","v":0}]
[null,"Taxpayer SSN:",null,null,null,null,null,null,{"$f":"IF(AV2=\"\",TEXT(AU2,\"000-00-0000\"),TEXT(AU2,\"000-00-0000\")&\" & \"&TEXT(AV2,\"000-00-0000\"))","v":"000-00-0000"}]
[null,"Periods Covered:",null,null,null,null,null,null,{"$f":"TEXT(AU3,\"mm/dd/yyyy\")&\" to \"&TEXT(AU4,\"mm/dd/yyyy\")","v":"01/00/1900 to 01/00/1900"}]
[]
[]
[null,"Dear Disclosure Manager:"]
[null,"This is a request under the Freedom of Information Act/Privacy Act."]
[null,{"$f":"\"I am requesting all documents relating to the IRS determination that additional tax should be assessed to the above taxpayer, my client.  Specifically, tax in the amount of \"&TEXT(AU5,\"$#,##0\")&\" on \"&TEXT(AU6,\"mm/dd/yyyy\")&\" assessed to taxpayer's \"&AV3&\" Form \"&AU7&\".   I am seeking all documents related to decision to find my client liable; including, but not limited to, the following documents: \"","v":"I am requesting all documents relating to the IRS determination that additional tax should be assessed to the above taxpayer, my client.  Specifically, tax in the amount of $0 on 01/00/1900 assessed to taxpayer's ↓ Tax Year ↓ Form .   I am seeking all documents related to decision to find my client liable; including, but not limited to, the following documents: "}]
[]
[]
[]
[]
[null,"·","All documents received by the IRS in response to a Form 4564, whether provided by the taxpayer or taxpayer’s representative. "]
[null,"·","All Form(s) 4549 – Income Tax Examination Changes – issued to the taxpayer or taxpayer’s representative."]
[null,"·","All Form(s) 886-A – Explanation of Items – issued to the taxpayer or taxpayer’s representative."]
[null,"·","All other letters or correspondence issued by IRS personnel related to this audit/examination. "]
[null,"·","All documents received by the IRS in response to a Form 4564, whether provided by the taxpayer or taxpayer’s representative. "]
[null,"·","All Notice(s) of Deficiency"]
[]
[]
[]
[null,"I do not wish to inspect the documents first. In order to determine my status for the applicability of fees, you should know that I am an “other” requester seeking information for personal or non-commercial use. "]
[null,"A copy of my properly completed 2848, which has been submitted to the Centralized Authorization File (CAF) unit, has been enclosed demonstrating my authority to access to the requested information. "]
[null,"As proof of identity, I am including [pick one]"]
[null,"  Copy of my Driver’s License, Passport, or other Government Issued Picture ID"]
[null,"  Notarized statement swearing to or affirming my identity"]
[null,"  A sworn statement as to my identity, under penalty of perjury.  The sworn statement must meet the requirements of 28 USC section 1746"]
[]
[null,"I am willing to pay fees for this request up to a maximum of $25. If you estimate that the fees will exceed this limit, please inform me first."]
[]
[null,"Thank you for your consideration of this request."]
[]
[null,"Sincerely,"]
[]
[]
[null,"David W Collins"]
[null,"Enrolled Agent"]
[]
[]
[null,"encl:"]
[null,null,"Copy of driver's license (front & back)"]
[null,null,"Form 2848"]
[]
[]
[]
[]
[]
[]
[]
[]
[]
[]
[]
[]
[]
[]
[]
[]
[]
[]
[]
[]
[]
[]
[]
[null,null,null,{"$error":"#VALUE!"}]
[]
[]
[]
[]
[]
[]
[]
[]
[]
[]
[]
[]
[]
[]
[]
[]
[]
[]
[null,null,null,{"$error":"#VALUE!"}]

{"sheet":"LtrHd","index":5,"n_rows":50,"n_cols":36,"rows_kept":50,"cut":false,"hidden":false,"merged":[[19,1,49,32],[19,35,19,36],[49,35,49,36],[17,1,18,14],[1,35,1,36],[9,1,12,14],[0,1,2,5],[0,6,2,13],[3,1,3,13],[16,15,16,18],[12,27,12,32]]}
[null,null,null,null,null,null,"dc Tax, LLC \n9301 Ocoee St, #64\nChattanooga, TN 37363"]
[null,null,null,null,null,null,null,null,null,null,null,null,null,null,null,null,null,null,null,null,null,null,null,null,null,null,null,null,null,null,null,null,null,null,null,"Addressee"]
[null,null,null,null,null,null,null,null,null,null,null,null,null,null,null,null,null,null,null,null,null,null,null,null,null,null,null,null,null,null,null,null,null,null,null,"Name"]
[null,"IRS representation for individuals & small business         ",null,null,null,null,null,null,null,null,null,null,null,null,null,null,null,null,null,null,null,null,null,null,null,null,null,null,null,null,null,null,null,null,null,"Address L1"]
[null,null,null,null,null,null,null,null,null,null,null,null,null,null,null,null,null,null,null,null,null,null,null,null,null,null,null,null,null,null,null,null,null,null,null,"Address L2"]
[null,null,null,null,null,null,null,null,null,null,null,null,null,null,null,null,null,null,null,null,null,null,null,null,null,null,null,null,null,null,null,null,null,null,null,"Address L3"]
[]
[null,null,null,null,null,null,null,null,null,null,null,null,null,null,null,null,null,null,null,null,null,null,null,null,null,null,null,null,null,null,null,null,null,null,null,"Greeting"]
[null,null,null,null,null,null,null,null,null,null,null,null,null,null,null,null,null,null,null,null,null,null,null,null,null,null,null,null,null,null,null,null,null,null,null,"Alt. Greeting"]
[null,{"$f":"AK3&CHAR(10)&AK4&CHAR(10)&IF(AK5=\"\",AK6,AK5)&CHAR(10)&IF(AK5=\"\",\"\",AK6)","v":"\n\n\n"}]
[]
[]
[null,null,null,null,null,null,null,null,null,null,null,null,null,null,null,null,null,null,null,null,null,null,null,null,null,null,null,{"$f":"TODAY()","v":"2025-02-10"}]
[]
[]
[]
[]
[null,{"$f":"IF(AK9=\"\",IFERROR(IF(LEN(AK8)=0,AK3,AK8&MID(AK3,FIND(CHAR(160),SUBSTITUTE(AK3,\" \",CHAR(160),SUM(LEN(AK3)-LEN(SUBSTITUTE(AK3,\" \",\"\")))/LEN(\" \"))),100))&\",\",\"\"),AK9)","v":","}]
[]
[null,null,null,null,null,null,null,null,null,null,null,null,null,null,null,null,null,null,null,null,null,null,null,null,null,null,null,null,null,null,null,null,null,null,null,"Letter text starts here"]
[]
[]
[]
[]
[]
[]
[]
[]
[]
[]
[]
[]
[]
[]
[]
[]
[]
[]
[]
[]
[]
[]
[]
[]
[]
[]
[]
[]
[]
[null,null,null,null,null,null,null,null,null,null,null,null,null,null,null,null,null,null,null,null,null,null,null,null,null,null,null,null,null,null,null,null,null,null,null,"Letter text ends here"]

{"sheet":"DataSheet","index":6,"n_rows":3,"n_cols":2,"rows_kept":3,"cut":false,"hidden":false,"merged":[]}
[]
["Printer:","Lexmark C3224 Duplex on Ne03:"]
[null,"To get printers, use \"=GetPrinters()\""]